bitfinex-derivatives/quotes_SOLF0:USTF0_20250603
["timestamp","ask_amount","ask_price","bid_price","bid_amount"]
[1748962519993,15.80984705,162.84,162.79,0.04483395]
[1748962520194,46.94,162.85,162.79,0.04483395]
[1748962520691,6.1384,162.79,162.6,15.80984705]
[1748962520997,46.94,162.85,162.65,46.92]
[1748962521488,15.80984705,162.82,162.72,15.80984705]
[1748962521799,6.1820925,162.79,162.75,0.04334931]
[1748962522095,0.04118708,162.79,162.75,0.0446738]
[1748962522490,15.80984705,162.78,162.75,0.0446738]
[1748962522688,0.04118708,162.79,162.75,0.0446738]
[1748962523991,15.784554,162.76,162.75,0.0446738]
[1748962524191,15.784554,162.76,162.68,52.74]
[1748962524598,6.138,162.8,162.73,6.1402]
[1748962524796,51.98953515,162.83,162.71,15.784554]
[1748962524997,15.784554,162.79,162.7,15.784554]
[1748962525195,0.04249115,162.76,162.73,0.04659431]
[1748962526092,0.04249115,162.76,162.75,6.1398]
[1748962526301,0.04249115,162.76,162.73,0.04659431]
[1748962526598,0.04249115,162.76,162.75,6.1398]
[1748962526998,0.04249115,162.76,162.74,6.1401]
[1748962527198,0.04249115,162.76,162.73,0.04659431]
[1748962527594,0.04249115,162.76,162.75,6.1398]
[1748962532504,0.04249115,162.76,162.74,6.1401]
[1748962532699,0.04249115,162.76,162.73,0.04659431]
[1748962533101,0.04249115,162.76,162.75,6.1398]
[1748962533509,0.04249115,162.76,162.73,0.04659431]
[1748962533704,0.04249115,162.76,162.75,6.1398]
[1748962534010,0.04249115,162.76,162.73,0.04659431]
[1748962534209,0.04249115,162.76,162.74,6.14]
[1748962534601,0.04249115,162.76,162.74,6.1402]
[1748962534805,0.04249115,162.76,162.73,0.04659431]
[1748962535215,0.04249115,162.76,162.75,6.1398]
[1748962536807,0.04249115,162.76,162.73,0.04659431]
[1748962537209,0.04249115,162.76,162.75,6.1398]
[1748962541310,0.04249115,162.76,162.73,0.04659431]
[1748962541709,0.04249115,162.76,162.75,6.1398]
[1748962544703,15.784554,162.8,162.73,0.04659431]
[1748962545609,50.92,162.83,162.73,0.04659431]
[1748962545816,0.04523145,162.8,162.77,6.1389]
[1748962546016,0.04523145,162.8,162.76,0.04453133]
[1748962546214,0.04523145,162.8,162.77,6.1388]
[1748962546515,0.04523145,162.8,162.76,0.04453133]
[1748962546716,6.18313145,162.8,162.76,6.18383133]
[1748962546917,0.04523145,162.8,162.76,0.04453133]
[1748962547925,0.04523145,162.8,162.79,6.1383]
[1748962549217,0.04523145,162.8,162.76,0.04453133]
[1748962550719,15.82978545,162.8,162.76,6.18373133]
[1748962551019,15.82978545,162.8,162.76,0.04453133]
[1748962551213,0.04523145,162.8,162.76,0.04453133]
[1748962553620,0.04523145,162.8,162.79,6.1383]
[1748962554524,0.04523145,162.8,162.76,0.04453133]
[1748962555318,15.784554,162.79,162.76,0.04453133]
[1748962555618,0.04523145,162.8,162.76,0.04453133]
[1748962556018,0.04523145,162.8,162.77,6.1388]
[1748962556219,0.04523145,162.8,162.76,0.04453133]
[1748962556628,0.04523145,162.8,162.78,6.1384]
[1748962556925,0.04523145,162.8,162.76,0.04453133]
[1748962557120,0.04523145,162.8,162.79,6.1383]
[1748962557820,0.04523145,162.8,162.78,6.1385]
[1748962558013,0.04523145,162.8,162.76,0.04453133]
[1748962558417,0.04523145,162.8,162.78,6.1386]
[1748962558628,0.04523145,162.8,162.76,0.04453133]
[1748962559017,0.04523145,162.8,162.78,6.1385]
[1748962559226,0.04523145,162.8,162.76,0.04453133]
[1748962559427,0.04523145,162.8,162.78,6.1384]
[1748962560328,15.784554,162.79,162.76,0.04453133]
[1748962560529,15.784554,162.77,162.76,0.04453133]
[1748962560826,15.784554,162.79,162.76,0.04453133]
[1748962561123,0.04523145,162.8,162.76,0.04453133]
[1748962561323,0.04523145,162.8,162.79,6.1383]
[1748962562231,2.54455928,162.87,162.79,9.47138821]
[1748962562427,2.54455928,162.87,162.81,9.47138821]
[1748962563029,2.54455928,162.87,162.86,6.1356]
[1748962563622,531.64,162.92,162.85,0.03897111]
[1748962563623,9.47138821,162.92,162.85,0.03897111]
[1748962564030,6.237,162.95,162.85,0.03897111]
[1748962564227,9.47138821,162.9,162.88,0.04171322]
[1748962564428,9.47138821,162.91,162.88,0.04171322]
[1748962564729,6.1338,162.91,162.88,0.04171322]
[1748962564924,9.47138821,162.92,162.88,0.04171322]
[1748962565132,6.237,162.95,162.88,0.04171322]
[1748962565326,6.1345,162.89,162.88,0.04171322]
[1748962566034,21.90896822,162.89,162.78,2.1194]
[1748962566329,15.76896822,162.86,162.77,597.36896822]
[1748962566533,6.1366,162.84,162.77,66.82896822]
[1748962566730,15.76896822,162.87,162.77,66.82896822]
[1748962567231,0.03888784,162.84,162.8,0.03976931]
[1748962568737,0.03888784,162.84,162.83,6.1368]
[1748962569033,66.82896822,162.9,162.8,0.03976931]
[1748962569230,66.82896822,162.9,162.79,15.76896822]
[1748962569231,6.135,162.88,162.85,6.1358]
[1748962569432,66.82896822,162.9,162.85,6.1358]
[1748962569732,15.76896822,162.88,162.78,1.9682]
[1748962569931,0.02007989,162.85,162.81,0.3817238]
[1748962570639,15.76896822,162.83,162.81,0.3817238]
[1748962571028,6.1371,162.82,162.81,0.3817238]
[1748962571230,15.76896822,162.83,162.81,0.3817238]
[1748962571937,6.1371,162.82,162.81,0.3817238]
[1748962572637,15.76896822,162.83,162.73,2.0637]
[1748962572842,15.76896822,162.81,162.73,2.0637]
[1748962573031,6.1385,162.79,162.76,6.1394]
[1748962573228,15.76896822,162.81,162.73,2.0637]
[1748962573439,0.04193994,162.79,162.75,0.04377592]
[1748962574835,15.81090816,162.79,162.75,0.04377592]
[1748962575146,15.76896822,162.77,162.66,17.79026822]
[1748962575344,15.76896822,162.75,162.66,2.0213]
[1748962575641,15.76896822,162.73,162.67,6.1427]
[1748962575945,15.76896822,162.69,162.61,2.1533]
[1748962576143,0.0448438,162.67,162.63,0.04698236]
[1748962576444,0.0448438,162.67,162.66,6.1432]
[1748962576841,4.38e-05,162.67,162.66,21.91216822]
[1748962577437,4.38e-05,162.67,162.66,6.1432]
[1748962577843,4.38e-05,162.67,162.66,21.91216822]
[1748962578347,4.38e-05,162.67,162.66,6.1432]
[1748962579244,4.38e-05,162.67,162.66,21.91216822]
[1748962579546,4.38e-05,162.67,162.66,6.1432]
[1748962588649,4.38e-05,162.67,162.63,0.04698236]
[1748962589449,4.38e-05,162.67,162.66,6.1432]
[1748962590251,4.38e-05,162.67,162.63,0.04698236]
[1748962591049,4.38e-05,162.67,162.66,6.1432]
[1748962596248,4.38e-05,162.67,162.63,0.04698236]
[1748962596851,4.38e-05,162.67,162.66,6.1432]
[1748962597453,4.38e-05,162.67,162.65,6.1433]
[1748962598049,4.38e-05,162.67,162.66,6.1432]
[1748962598246,4.38e-05,162.67,162.63,0.04698236]
[1748962599149,4.38e-05,162.67,162.65,6.1435]
[1748962599346,4.38e-05,162.67,162.63,0.04698236]
[1748962600246,4.38e-05,162.67,162.65,6.1433]
[1748962600649,6.1430438,162.67,162.63,0.04698236]
[1748962600850,4.38e-05,162.67,162.63,0.04698236]
[1748962601949,4.38e-05,162.67,162.66,6.1432]
[1748962606266,59.0534752,163.18,162.66,47.8]
[1748962606267,47.8,162.77,162.66,47.8]
[1748962606557,47.8,162.77,162.72,9.48444584]
[1748962606756,57.28444584,162.77,162.74,6.1399]
[1748962606949,57.28444584,162.77,162.67,2.0974]
[1748962607150,9.48444584,162.75,162.68,9.48444584]
[1748962607461,0.04671924,162.73,162.7,0.04324484]
[1748962608350,0.04671924,162.73,162.72,6.1409]
[1748962608955,0.04671924,162.73,162.71,6.1412]
[1748962609353,0.04671924,162.73,162.7,0.04324484]
[1748962609557,0.04671924,162.73,162.71,6.1413]
[1748962610561,6.18721924,162.73,162.71,6.1413]
[1748962610760,6.18721924,162.73,162.7,0.04324484]
[1748962610761,0.04671924,162.73,162.7,0.04324484]
[1748962611152,0.04671924,162.73,162.7,6.18474484]
[1748962611153,6.18751924,162.73,162.7,6.18474484]
[1748962612453,9.48444584,162.71,162.7,0.04324484]
[1748962612659,9.48444584,162.71,162.62,9.48444584]
[1748962612860,6.1423,162.69,162.66,6.1429]
[1748962613061,6.1423,162.69,162.62,9.48444584]
[1748962613463,6.1423,162.69,162.66,6.1429]
[1748962613762,0.04465864,162.67,162.64,0.04391486]
[1748962613965,0.04465864,162.67,162.65,6.1435]
[1748962614162,9.52910448,162.67,162.64,0.04391486]
[1748962614364,9.48444584,162.65,162.64,0.04391486]
[1748962615068,15.62794584,162.65,162.64,0.04391486]
[1748962615368,6.1453,162.61,162.52,51.58509804]
[1748962615667,9.48444584,162.59,162.52,61.96124584]
[1748962616261,0.04614451,162.57,162.56,6.1468]
[1748962619462,0.04614451,162.57,162.54,15.86350574]
[1748962619463,46.1,162.62,162.54,15.86350574]
[1748962620164,61.9215548,162.62,162.54,0.04195094]
[1748962620374,0.04102837,162.6,162.59,6.1458]
[1748962621167,0.04102837,162.6,162.58,0.04539912]
[1748962621562,0.04102837,162.6,162.59,6.1458]
[1748962621769,0.04102837,162.6,162.58,0.04539912]
[1748962623471,0.04102837,162.6,162.58,6.19139912]
[1748962623862,0.04102837,162.6,162.58,0.04539912]
[1748962624570,0.04102837,162.6,162.59,6.1458]
[1748962626472,2.837e-05,162.6,162.59,6.1458]
[1748962630067,2.837e-05,162.6,162.58,6.19149912]
[1748962630372,2.837e-05,162.6,162.58,0.04539912]
[1748962631869,2.837e-05,162.6,162.59,6.1458]
[1748962632263,2.837e-05,162.6,162.58,0.04539912]
[1748962632572,2.837e-05,162.6,162.58,6.19139912]
[1748962632779,2.837e-05,162.6,162.58,0.04539912]
[1748962633575,6.14572837,162.6,162.58,6.19149912]
[1748962633774,2.837e-05,162.6,162.58,6.19149912]
[1748962634275,2.837e-05,162.6,162.58,0.04539912]
[1748962634777,2.837e-05,162.6,162.59,6.1458]
[1748962634972,2.837e-05,162.6,162.59,28.3747548]
[1748962635479,2.837e-05,162.6,162.59,12.5532]
[1748962635863,2.837e-05,162.6,162.59,6.1458]
[1748962639173,2.837e-05,162.6,162.58,0.04539912]
[1748962639667,2.837e-05,162.6,162.59,6.1458]
[1748962640670,2.837e-05,162.6,162.58,0.04539912]
[1748962641076,2.837e-05,162.6,162.59,6.1458]
[1748962646379,9.48911584,162.6,162.58,0.04539912]
[1748962647375,9.48911584,162.6,162.58,6.19139912]
[1748962647579,9.48911584,162.6,162.58,0.04539912]
[1748962647779,2.837e-05,162.6,162.58,0.04539912]
[1748962649083,2.837e-05,162.6,162.59,6.1458]
[1748962650886,2.837e-05,162.6,162.58,0.04539912]
[1748962651381,2.837e-05,162.6,162.59,6.1458]
[1748962651879,5.71462626,162.72,162.59,42.94]
[1748962652191,9.48908747,162.68,162.61,9.48908747]
[1748962652378,9.48908747,162.72,162.61,9.48908747]
[1748962652686,127.88500755,162.74,162.6,4.1128]
[1748962652687,9.48908747,162.71,162.63,9.48908747]
[1748962652874,0.04501129,162.69,162.65,0.03937566]
[1748962653184,0.04501129,162.69,162.68,6.1424]
[1748962658594,0.04501129,162.69,162.67,6.1426]
[1748962659283,0.04501129,162.69,162.68,6.1424]
[1748962660884,0.04501129,162.69,162.67,6.1427]
[1748962661079,0.04501129,162.69,162.65,0.03937566]
[1748962661290,9.53409876,162.69,162.65,0.03937566]
[1748962661488,0.04501129,162.69,162.67,6.1426]
[1748962662381,0.04501129,162.69,162.68,6.1424]
[1748962665090,0.04501129,162.69,162.67,6.1426]
[1748962665984,0.04501129,162.69,162.68,6.1424]
[1748962666186,0.04501129,162.69,162.65,0.03937566]
[1748962666792,0.04501129,162.69,162.65,9.52846313]
[1748962666993,0.04501129,162.69,162.68,6.1424]
[1748962668588,0.04501129,162.69,162.67,6.1426]
[1748962668785,0.04501129,162.69,162.65,0.03937566]
[1748962669687,0.04501129,162.69,162.68,6.1424]
[1748962670488,123.74350755,162.74,162.73,6.1405]
[1748962670695,41.38,162.75,162.7,9.48908747]
[1748962670996,9.48908747,162.78,162.74,6.1398]
[1748962671196,9.48908747,162.78,162.7,9.48908747]
[1748962671506,6.1388,162.78,162.7,9.48908747]
[1748962671683,0.02122134,162.76,162.72,0.04181907]
[1748962672284,0.02122134,162.76,162.73,9.48908747]
[1748962672494,0.02122134,162.76,162.72,0.04181907]
[1748962672892,9.51030881,162.76,162.72,0.04181907]
[1748962673093,6.1403,162.74,162.72,0.04181907]
[1748962673307,9.48908747,162.74,162.72,0.04181907]
[1748962673597,6.1405,162.73,162.72,0.04181907]
[1748962673995,9.48908747,162.74,162.67,4.3257]
[1748962674191,9.48908747,162.72,162.67,4.3257]
[1748962674391,9.48908747,162.72,162.68,6.1423]
[1748962674587,9.48908747,162.72,162.67,4.3257]
[1748962674790,53.6567,162.79,162.67,4.3257]
[1748962674996,9.48908747,162.73,162.71,0.04700773]
[1748962675198,6.1412,162.72,162.71,0.04700773]
[1748962675796,9.48908747,162.73,162.71,0.04700773]
[1748962676288,6.1409,162.72,162.71,0.04700773]
[1748962676489,9.48908747,162.73,162.65,41.38]
[1748962676693,9.48908747,162.7,162.67,6.1426]
[1748962676898,15.63088747,162.7,162.65,41.38]
[1748962677198,15.63088747,162.7,162.67,6.1425]
[1748962677398,9.48908747,162.7,162.65,41.38]
[1748962677596,9.53323128,162.7,162.67,0.04392445]
[1748962677797,15.67493128,162.7,162.67,0.04392445]
[1748962678001,9.53323128,162.7,162.67,0.04392445]
[1748962678198,0.04414381,162.7,162.67,0.04392445]
[1748962678401,0.04414381,162.7,162.68,6.1424]
[1748962679394,0.04414381,162.7,162.67,0.04392445]
[1748962679902,0.04414381,162.7,162.68,6.1422]
[1748962680400,0.04414381,162.7,162.67,0.04392445]
[1748962681703,0.04414381,162.7,162.69,6.142]
[1748962683801,41.38,162.74,162.73,6.1405]
[1748962684003,539.99752422,162.82,162.73,9.48908747]
[1748962684004,9.48908747,162.82,162.73,9.48908747]
[1748962684299,4.1334,162.89,162.79,9.48908747]
[1748962684500,132.86480498,162.9,162.83,9.48908747]
[1748962684699,9.48908747,162.96,162.83,9.48908747]
[1748962684700,45.5134,162.95,162.83,9.48908747]
[1748962684904,9.53477578,162.91,162.87,0.03940927]
[1748962685205,0.04568831,162.91,162.87,0.03940927]
[1748962685801,15.76105134,162.88,162.87,0.03940927]
[1748962686494,41.38,162.9,162.87,0.03940927]
[1748962686694,191.20105134,162.9,162.87,0.03940927]
[1748962686903,41.38,162.9,162.87,0.03940927]
[1748962687100,57.14105134,162.9,162.87,0.03940927]
[1748962687297,63.27545134,162.9,162.87,0.03940927]
[1748962687502,57.14105134,162.9,162.87,0.03940927]
[1748962687905,6.1348,162.89,162.87,0.03940927]
[1748962689007,57.14105134,162.9,162.87,0.03940927]
[1748962689709,41.38,162.9,162.87,0.03940927]
[1748962689902,6.1349,162.88,162.87,0.03940927]
[1748962690704,0.04568831,162.91,162.87,0.03940927]
[1748962692311,0.04568831,162.91,162.88,6.1348]
[1748962693415,0.04568831,162.91,162.87,0.03940927]
[1748962694307,6.17968831,162.91,162.87,6.17430927]
[1748962695016,6.1342,162.9,162.87,0.03940927]
[1748962695202,0.04568831,162.91,162.87,0.03940927]
[1748962695612,0.04568831,162.91,162.88,6.1348]
[1748962696509,0.04568831,162.91,162.87,0.03940927]
[1748962697015,15.76105134,162.97,162.88,55.62105134]
[1748962697711,6.132,162.96,162.88,55.62105134]
[1748962697907,0.02021602,162.94,162.9,0.04174242]
[1748962698111,0.02021602,162.94,162.93,6.133]
[1748962701013,39.86,163.0,162.97,6.1314]
[1748962701216,39.86,163.0,162.92,2.0883]
[1748962701511,6.131,162.99,162.95,6.1319]
[1748962702008,6.1307,162.99,162.96,6.1316]
[1748962702215,39.86,163.0,162.95,0.04216119]
[1748962702711,6.1311,162.98,162.95,6.17416119]
[1748962702905,39.86,163.0,162.95,0.04216119]
[1748962703112,6.1295,163.03,162.99,6.1304]
[1748962703310,39.86,163.04,162.99,0.04420386]
[1748962703713,1.06786136,163.06,162.99,0.04420386]
[1748962703914,15.76105134,163.07,162.99,0.04420386]
[1748962704112,15.76105134,163.07,163.01,0.04050063]
[1748962704316,15.76105134,163.06,163.01,0.04050063]
[1748962704511,15.76105134,163.09,163.01,0.04050063]
[1748962704814,41.9767,163.1,163.01,0.04050063]
[1748962705010,15.76105134,163.09,163.01,0.04050063]
[1748962705215,6.1278,163.07,163.02,6.1294]
[1748962705406,6.1278,163.07,163.03,0.03907724]
[1748962705908,9.43864041,163.04,163.03,0.03907724]
[1748962706612,15.56754041,163.04,163.03,0.03907724]
[1748962707306,15.73237936,163.08,163.03,0.03907724]
[1748962707715,6.1289,163.04,163.03,0.03907724]
[1748962708014,40.90771393,163.1,163.03,0.03907724]
[1748962708214,6.1283,163.06,163.03,0.03907724]
[1748962708812,15.73237936,163.09,163.03,0.03907724]
[1748962709223,6.128,163.07,163.03,6.16807724]
[1748962709405,6.128,163.07,163.03,0.03907724]
[1748962709607,15.73237936,163.09,163.03,0.03907724]
[1748962710410,6.128,163.07,163.03,6.16807724]
[1748962710616,15.73237936,163.09,163.03,0.03907724]
[1748962710913,6.1283,163.06,163.03,0.03907724]
[1748962711221,15.73237936,163.09,163.03,0.03907724]
[1748962711517,15.73237936,163.07,163.03,0.03907724]
[1748962711714,39.84,163.1,163.03,0.03907724]
[1748962711914,6.1277,163.08,163.04,6.1286]
[1748962712111,6.1277,163.08,163.03,0.03907724]
[1748962712317,55.57237936,163.1,163.03,0.03907724]
[1748962712516,61.69937936,163.1,163.07,6.1275]
[1748962712712,61.69937936,163.1,163.07,6.17472281]
[1748962712713,45.967,163.1,163.07,6.17472281]
[1748962713117,6.1264,163.11,163.08,6.1273]
[1748962713423,15.73237936,163.14,163.07,0.04722281]
[1748962713727,569.52722277,163.17,163.09,0.04288888]
[1748962713912,38.36,163.23,163.12,15.73237936]
[1748962714117,38.36,163.23,163.16,0.04376511]
[1748962714118,6.124,163.17,163.16,0.04376511]
[1748962714321,1.06686287,163.21,163.16,0.04376511]
[1748962714618,15.73237936,163.21,163.17,0.04133109]
[1748962715023,6.1236,163.18,163.17,0.04133109]
[1748962715319,44.4836,163.18,163.17,0.04133109]
[1748962716525,6.1233,163.19,163.17,0.04133109]
[1748962716713,568.02,163.18,163.05,2.0814]
[1748962716919,6.1266,163.11,163.05,2.0814]
[1748962717128,38.34,163.1,163.05,2.0814]
[1748962717513,38.34,163.19,163.08,15.73237936]
[1748962717719,0.04133109,163.15,163.13,6.1254]
[1748962718033,0.04133109,163.15,163.12,0.04440246]
[1748962718327,0.04133109,163.15,163.14,6.1251]
[1748962720433,0.04133109,163.15,163.13,6.1253]
[1748962720726,0.04133109,163.15,163.12,0.04440246]
[1748962720920,0.04133109,163.15,163.14,6.1251]
[1748962721127,0.04133109,163.15,163.12,0.04440246]
[1748962721625,38.34,163.14,163.13,6.1253]
[1748962722224,0.04133109,163.15,163.14,6.1251]
[1748962723133,75.8920688,163.47,163.12,0.04440246]
[1748962723424,6.1228,163.2,163.12,4.1606]
[1748962723625,38.34,163.19,163.12,4.1606]
[1748962723834,6.1238,163.18,163.12,4.1606]
[1748962724018,38.34,163.19,163.12,4.1606]
[1748962724218,38.34,163.19,163.13,0.04380521]
[1748962724732,6.1242,163.17,163.14,6.1248]
[1748962725032,6.1242,163.17,163.13,0.04380521]
[1748962725033,15.73237936,163.18,163.13,0.04380521]
[1748962726127,38.32,163.17,163.13,0.04380521]
[1748962726530,38.32,163.17,163.16,6.1242]
[1748962727226,15.73237936,163.2,163.13,0.04380521]
[1748962727434,38.32,163.19,163.13,0.04380521]
[1748962727626,38.32,163.19,163.14,0.04278823]
[1748962728035,15.73237936,163.22,163.14,0.04278823]
[1748962728333,38.32,163.23,163.14,15.77516759]
[1748962728334,38.32,163.21,163.14,15.77516759]
[1748962728530,38.32,163.21,163.14,17.93696759]
[1748962728726,38.32,163.21,163.14,2.20458823]
[1748962728923,529.68,163.26,163.19,6.1232]
[1748962728924,38.32,163.2,163.19,6.1232]
[1748962729229,38.32,163.22,163.18,0.04623696]
[1748962729737,38.32,163.26,163.18,0.04623696]
[1748962730829,15.73237936,163.25,163.18,0.04623696]
[1748962731334,15.73237936,163.25,163.21,6.1224]
[1748962731533,15.73237936,163.25,163.21,0.04070708]
[1748962731930,38.32,163.26,163.21,0.04070708]
[1748962732433,38.32,163.26,163.23,6.1214]
[1748962732834,15.73237936,163.25,163.21,0.04070708]
[1748962733039,15.73237936,163.25,163.22,6.1219]
[1748962733040,21.85367936,163.25,163.22,6.1219]
[1748962734232,15.73237936,163.23,163.07,12.255]
[1748962734534,12.2391,163.29,163.03,23.74829156]
[1748962734535,2.1125,163.24,163.12,15.73237936]
[1748962734834,38.32,163.23,163.16,15.73237936]
[1748962735032,530.46633982,163.32,163.22,15.73237936]
[1748962735033,15.73237936,163.32,163.22,15.73237936]
[1748962735228,38.32,163.33,163.25,0.04162386]
[1748962735229,0.03905048,163.29,163.25,0.04162386]
[1748962735629,0.03905048,163.29,163.26,6.1205]
[1748962735831,0.03905048,163.29,163.25,0.04162386]
[1748962736135,38.32,163.28,163.25,0.04162386]
[1748962737129,54.05237936,163.28,163.25,0.04162386]
[1748962737331,38.32,163.28,163.25,0.04162386]
[1748962737725,38.32,163.28,163.27,6.1202]
[1748962738533,0.03905048,163.29,163.28,6.1198]
[1748962738735,0.03905048,163.29,163.25,0.04162386]
[1748962739536,15.77142984,163.29,163.25,0.04162386]
[1748962739739,15.73237936,163.27,163.22,6.1218]
[1748962739941,15.73237936,163.27,163.17,15.73237936]
[1748962740236,2.1429,163.28,163.18,6.1234]
[1748962740237,6.1227,163.21,163.18,6.1234]
[1748962740439,54.03237936,163.21,163.14,4.174]
[1748962740734,38.3,163.21,163.2,6.1228]
[1748962741537,38.3,163.21,163.16,0.04417266]
[1748962743230,38.3,163.21,163.17,6.1238]
[1748962743231,6.123,163.2,163.17,6.1238]
[1748962744046,0.04179721,163.22,163.16,0.04417266]
[1748962744336,37.50179721,163.22,163.16,0.04417266]
[1748962744538,37.50179721,163.22,163.2,6.1228]
[1748962744943,37.50179721,163.22,163.2,6.1226]
[1748962745142,0.04179721,163.22,163.19,0.04166754]
[1748962745544,0.04179721,163.22,163.21,6.1225]
[1748962749546,0.04179721,163.22,163.19,0.04166754]
[1748962750251,0.04179721,163.22,163.21,6.1225]
[1748962750939,9.721e-05,163.22,163.21,6.1225]
[1748962751441,37.44,163.28,163.2,15.73237936]
[1748962751646,37.44,163.28,163.22,15.73237936]
[1748962751836,15.73237936,163.31,163.3,6.1191]
[1748962752037,37.44,163.31,163.24,15.73237936]
[1748962752243,37.44,163.3,163.24,15.73237936]
[1748962752449,0.04053372,163.29,163.28,6.1198]
[1748962753445,15.77291308,163.29,163.25,0.04291715]
[1748962753850,0.04053372,163.29,163.25,0.04291715]
[1748962754048,0.04053372,163.29,163.28,6.1198]
[1748962754647,3.372e-05,163.29,163.28,6.1198]
[1748962755447,37.44003372,163.29,163.28,6.1198]
[1748962756153,37.44003372,163.29,163.27,6.1202]
[1748962756653,37.44003372,163.29,163.25,0.04291715]
[1748962756849,37.44003372,163.29,163.27,6.1199]
[1748962757055,37.44003372,163.29,163.25,0.04291715]
[1748962757553,3.372e-05,163.29,163.28,6.1198]
[1748962758046,37.44003372,163.29,163.28,6.1198]
[1748962758246,37.44003372,163.29,163.27,6.1201]
[1748962758649,37.44003372,163.29,163.27,6.12]
[1748962758954,37.44003372,163.29,163.25,0.04291715]
[1748962759253,37.44003372,163.29,163.26,6.1204]
[1748962759449,37.44003372,163.29,163.25,0.04291715]
[1748962760049,3.372e-05,163.29,163.28,6.1198]
[1748962760455,37.44003372,163.29,163.28,6.1198]
[1748962763356,37.44003372,163.29,163.25,0.04291715]
[1748962763758,37.44003372,163.29,163.28,6.1198]
[1748962765753,3.372e-05,163.29,163.28,6.1198]
[1748962767560,3.372e-05,163.29,163.25,0.04291715]
[1748962768158,3.372e-05,163.29,163.27,6.12]
[1748962768453,3.372e-05,163.29,163.25,0.04291715]
[1748962768758,15.73237936,163.26,163.25,0.04291715]
[1748962770760,37.44003372,163.29,163.25,0.04291715]
[1748962771059,53.17241308,163.29,163.25,0.04291715]
[1748962771257,37.44003372,163.29,163.25,0.04291715]
[1748962771758,37.44003372,163.29,163.27,6.12]
[1748962772257,15.73237936,163.28,163.25,6.16371715]
[1748962772560,53.17241308,163.29,163.25,0.04291715]
[1748962773664,53.17241308,163.29,163.26,6.1204]
[1748962774161,37.44003372,163.29,163.26,6.1205]
[1748962774856,43.55963372,163.29,163.25,6.16371715]
[1748962775052,43.55963372,163.29,163.25,0.04291715]
[1748962775558,3.372e-05,163.29,163.25,0.04291715]
[1748962775965,3.372e-05,163.29,163.28,6.1198]
[1748962776260,3.372e-05,163.29,163.25,0.04291715]
[1748962776452,3.372e-05,163.29,163.28,6.1198]
[1748962794480,3.372e-05,163.29,163.25,0.04291715]
[1748962794481,9.4085365,163.29,163.25,0.04291715]
[1748962794772,36.86,163.28,163.25,0.04291715]
[1748962795274,46.26850278,163.28,163.25,0.04291715]
[1748962795474,46.26850278,163.28,163.26,6.1203]
[1748962795674,46.26850278,163.28,163.25,0.04291715]
[1748962796575,9.40850278,163.26,163.25,0.04291715]
[1748962797185,9.40850278,163.26,163.18,2.0776]
[1748962797378,9.40850278,163.23,163.17,1.9585]
[1748962797580,36.86,163.22,163.15,9.40850278]
[1748962798079,9.40850278,163.21,163.17,0.04082307]
[1748962798377,0.04094683,163.2,163.18,6.1236]
[1748962798577,0.04094683,163.2,163.17,0.04082307]
[1748962798974,0.04094683,163.2,163.18,6.1233]
[1748962799183,0.04094683,163.2,163.17,0.04082307]
[1748962799383,0.04094683,163.2,163.19,6.1232]
[1748962799384,36.90094683,163.2,163.19,6.1232]
[1748962800184,36.90094683,163.2,163.17,0.04082307]
[1748962800382,52.60554124,163.2,163.17,0.04082307]
[1748962800886,36.90094683,163.2,163.19,6.1232]
[1748962801075,534.55776272,163.29,163.18,15.70459441]
[1748962801275,36.84,163.29,163.22,15.70459441]
[1748962801477,36.84,163.33,163.26,15.70459441]
[1748962801883,534.65776272,163.38,163.3,15.70459441]
[1748962802076,36.84,163.37,163.32,0.04048284]
[1748962802472,36.84,163.41,163.34,15.70459441]
[1748962802686,36.84,163.41,163.36,0.04142346]
[1748962803277,540.87876272,163.47,163.36,15.74601787]
[1748962803478,36.84,163.46,163.4,0.04348809]
[1748962803681,36.84,163.5,163.41,15.70459441]
[1748962803885,15.70459441,163.51,163.44,6.1600123]
[1748962804178,5.6986672,163.5,163.44,0.0463123]
[1748962804379,128.86,163.51,163.44,0.0463123]
[1748962804380,15.70459441,163.47,163.44,0.0463123]
[1748962804586,6.1145,163.43,163.33,6.2918]
[1748962804775,15.70459441,163.4,163.33,6.2918]
[1748962804977,36.84,163.43,163.33,6.2918]
[1748962805286,15.70459441,163.38,163.33,6.2918]
[1748962805481,15.70459441,163.39,163.33,6.2918]
[1748962805683,0.04464952,163.38,163.34,0.04115458]
[1748962806183,15.74924393,163.38,163.34,0.04115458]
[1748962807073,6.1167,163.37,163.34,0.04115458]